[Event "CZE-ch U16 Girls 2023"]
[Site "Teplice"]
[Date "2023.03.17"]
[Round "8.2"]
[White "Janouskova, Adela"]
[Black "Havelkova, Beata"]
[Result "1/2-1/2"]
[ECO "B43"]
[WhiteElo "1558"]
[BlackElo "1670"]
[Annotator "NA RC COMBH"]
[PlyCount "97"]
[EventDate "2023.03.09"]
[EventType "swiss"]
[EventCountry "CZE"]
[SourceTitle "playchess.com"]
[Source "ChessBase"]
[SourceQuality "1"]
[TimeControl "40/5400+30:1800+30"]

1. e4 {[%emt 0:00:14]} c5 {[%emt 0:00:07]} 2. Nf3 {[%emt 0:00:18]} e6 {[%emt 0:00:07]} 3. d4 {[%emt 0:00:08]} cxd4 {[%emt 0:00:05]} 4. Nxd4 {[%emt 0:00:03]} a6 {[%emt 0:00:08]} 5. Nc3 {[%emt 0:00:05]} Qc7 {[%emt 0:00:07]} 6. g3 {[%emt 0:00:19]} Nf6 {[%emt 0:01:11]} 7. Bg2 {[%emt 0:00:20]} Bb4 {[%emt 0:00:07]} 8. Bd2 {[%emt 0:01:00]} Nc6 {[%emt 0:00:33]} 9. Nde2 {[%emt 0:03:07]} Be7 {[%emt 0:00:56]} 10. O-O {[%emt 0:00:31]} b5 {[%emt 0:04:58]} 11. Bf4 {[%emt 0:05:11]} e5 {[%emt 0:05:48]} 12. Be3 {[%emt 0:01:54]} Bb7 {[%emt 0:02:24]} 13. a4 {[%emt 0:07:53]} b4 {[%emt 0:02:49]} 14. Nd5 {[%emt 0:01:12]} Nxd5 {[%emt 0:00:11]} 15. exd5 {[%emt 0:00:07]} Na5 {[%emt 0:02:08]} 16. b3 {[%emt 0:05:54]} O-O {[%emt 0:01:48]} 17. Qd2 {[%emt 0:09:53]} Rac8 {[%emt 0:01:10]} 18. Rac1 {[%emt 0:01:19]} Rfe8 {[%emt 0:02:18]} 19. Rfd1 {[%emt 0:01:26]} Bc5 {[%emt 0:02:33]} 20. Be4 {[%emt 0:10:06]} Qb6 {[%emt 0:03:20]} 21. Qd3 {[%emt 0:05:42]} g6 {[%emt 0:02:41]} 22. g4 {[%emt 0:01:48]} Bxe3 {[%emt 0:03:41]} 23. fxe3 {[%emt 0:00:47]} Ba8 {[%emt 0:00:33]} 24. Bg2 {[%emt 0:05:16]} Nb7 {[%emt 0:01:16]} 25. Kh1 {[%emt 0:01:04]} Nc5 {[%emt 0:11:20]} 26. Qd2 {[%emt 0:00:40]} e4 {[%emt 0:03:09]} 27. Qd4 {[%emt 0:04:37]} Qb8 {[%emt 0:12:06]} 28. h4 {[%emt 0:03:10]} Qe5 {[%emt 0:08:55]} 29. Qxb4 {[%emt 0:04:01]} Bxd5 {[%emt 0:01:11]} 30. Qd4 {[%emt 0:03:01]} Bc6 {[%emt 0:03:11]} 31. Qxe5 {[%emt 0:01:34]} Rxe5 {[%emt 0:00:07]} 32. Nd4 {[%emt 0:01:01]} Ne6 {[%emt 0:08:17]} 33. Nxc6 {[%emt 0:02:24]} Rxc6 {[%emt 0:00:27]} 34. Rxd7 {[%emt 0:07:03]} Rc3 {[%emt 0:00:07]} 35. Re1 {[%emt 0:04:14]} Rxc2 {[%emt 0:00:18]} 36. b4 {[%emt 0:04:33]} Ra2 {[%emt 0:01:07]} 37. a5 {[%emt 0:00:18]} Rb5 {[%emt 0:05:40]} 38. Ra7 {[%emt 0:01:21]} Rxb4 {[%emt 0:00:33]} 39. Rxa6 {[%emt 0:00:30]} Nc5 {[%emt 0:04:19]} 40. Ra8+ {[%emt 0:01:44]} Kg7 {[%emt 0:00:07]} 41. a6 {[%emt 0:12:32]} Rxa6 {[%emt 0:03:14]} 42. Rxa6 {[%emt 0:00:16]} Nxa6 {[%emt 0:00:05]} 43. Rc1 {[%emt 0:01:09]} Ra4 {[%emt 0:04:52]} 44. Kh2 {[%emt 0:01:34]} Nb8 {[%emt 0:05:50]} 45. Kg3 {[%emt 0:01:41]} Nd7 {[%emt 0:03:06]} 46. g5 {[%emt 0:03:56]} Ne5 {[%emt 0:01:17]} 47. Rc7 {[%emt 0:01:36]} h5 {[%emt 0:03:12]} 48. Re7 {[%emt 0:01:08]} Ng4 {[%emt 0:00:57]} 49. Rxe4 {[%emt 0:03:09]} 1/2-1/2

[Event "CZE-ch U16 Girls 2023"]
[Site "Teplice"]
[Date "2023.03.17"]
[Round "8.3"]
[White "Sikorova, Jana"]
[Black "Cinkova, Vicky"]
[Result "1-0"]
[ECO "D31"]
[WhiteElo "1735"]
[BlackElo "1285"]
[Annotator "NA RC COMBH"]
[PlyCount "107"]
[EventDate "2023.03.09"]
[EventType "swiss"]
[EventCountry "CZE"]
[SourceTitle "playchess.com"]
[Source "ChessBase"]
[SourceQuality "1"]
[TimeControl "40/5400+30:1800+30"]

1. d4 {[%emt 0:00:05]} d5 {[%emt 0:00:21]} 2. c4 {[%emt 0:00:27]} e6 {[%emt 0:00:16]} 3. Nc3 {[%emt 0:00:36]} f5 {[%emt 0:00:29]} 4. Bf4 {[%emt 0:00:33]} c6 {[%emt 0:01:24]} 5. Nf3 {[%emt 0:01:01]} Bd6 {[%emt 0:01:28]} 6. Bxd6 {[%emt 0:01:09]} Qxd6 {[%emt 0:00:04]} 7. e3 {[%emt 0:01:25]} Nf6 {[%emt 0:02:37]} 8. Bd3 {[%emt 0:01:34]} O-O {[%emt 0:05:04]} 9. O-O {[%emt 0:03:14]} Nbd7 {[%emt 0:03:05]} 10. Qc2 {[%emt 0:01:46]} Ne4 {[%emt 0:02:19]} 11. Rab1 {[%emt 0:05:38]} Ndf6 {[%emt 0:08:54]} 12. Ne5 {[%emt 0:02:32]} Nd7 {[%emt 0:08:07]} 13. f4 {[%emt 0:04:01]} Rf6 {[%emt 0:07:06]} 14. Nxe4 {[%emt 0:01:59]} fxe4 {[%emt 0:01:55]} 15. Be2 {[%emt 0:00:42]} c5 {[%emt 0:11:29]} 16. cxd5 {[%emt 0:15:53]} cxd4 {[%emt 0:02:28]} 17. Qxe4 {[%emt 0:03:44]} dxe3 {[%emt 0:10:07]} 18. dxe6 {[%emt 0:04:30]} Nc5 {[%emt 0:06:46]} 19. Qxe3 {[%emt 0:01:59]} Bxe6 {[%emt 0:01:02]} 20. Rbd1 {[%emt 0:03:01]} Qf8 {[%emt 0:07:52]} 21. g3 {[%emt 0:01:21]} Bxa2 {[%emt 0:05:02]} 22. b4 {[%emt 0:05:45]} Na6 {[%emt 0:07:01]} 23. Nd7 {[%emt 0:03:33]} Qxb4 {[%emt 0:00:45]} 24. Nxf6+ {[%emt 0:00:48]} gxf6 {[%emt 0:00:07]} 25. Bxa6 {[%emt 0:05:53]} bxa6 {[%emt 0:00:34]} 26. Rd7 {[%emt 0:00:20]} Rc8 {[%emt 0:00:57]} 27. Qxa7 {[%emt 0:02:39]} h6 {[%emt 0:03:07]} 28. Rfd1 {[%emt 0:01:34]} Re8 {[%emt 0:02:01]} 29. Rd8 {[%emt 0:03:03]} Bf7 {[%emt 0:00:12]} 30. Rxe8+ {[%emt 0:01:00]} Bxe8 {[%emt 0:00:05]} 31. Qe3 {[%emt 0:05:15]} Bf7 {[%emt 0:00:59]} 32. Qd4 {[%emt 0:01:55]} Qb3 {[%emt 0:00:56]} 33. Re1 {[%emt 0:01:41]} a5 {[%emt 0:00:23]} 34. Qd8+ {[%emt 0:01:58]} Kg7 {[%emt 0:00:06]} 35. Qxa5 {[%emt 0:00:23]} Qf3 {[%emt 0:00:30]} 36. Qf5 {[%emt 0:01:44]} Qc3 {[%emt 0:01:21]} 37. Qe4 {[%emt 0:02:11]} Qc5+ {[%emt 0:00:28]} 38. Qe3 {[%emt 0:00:22]} Qd5 {[%emt 0:00:19]} 39. Rc1 {[%emt 0:01:00]} Qd6 {[%emt 0:00:25]} 40. Qc5 {[%emt 0:00:42]} Qd2 {[%emt 0:00:17]} 41. Rc2 {[%emt 0:37:54]} Qe1+ {[%emt 0:14:35]} 42. Kg2 {[%emt 0:00:00]} Qe4+ {[%emt 0:00:10]} 43. Kh3 {[%emt 0:00:00]} Qf3 {[%emt 0:02:10]} 44. Qf5 {[%emt 0:00:00]} h5 {[%emt 0:06:41]} 45. Rc7 {[%emt 0:00:00]} Qf1+ {[%emt 0:04:21]} 46. Kh4 {[%emt 0:00:00]} Qe2 {[%emt 0:00:12]} 47. Rxf7+ {[%emt 0:00:00]} Kxf7 {[%emt 0:00:18]} 48. Qxh5+ {[%emt 0:00:00]} Qxh5+ {[%emt 0:00:08]} 49. Kxh5 {[%emt 0:00:00]} Kg7 {[%emt 0:00:38]} 50. h4 {[%emt 0:00:00]} Kh7 {[%emt 0:00:37]} 51. g4 {[%emt 0:00:00]} Kg7 {[%emt 0:00:13]} 52. g5 {[%emt 0:00:00]} f5 {[%emt 0:00:38]} 53. g6 {[%emt 0:00:00]} Kh8 {[%emt 0:00:14]} 54. Kg5 {[%emt 0:00:00]} 1-0

[Event "CZE-ch U16 Girls 2023"]
[Site "Teplice"]
[Date "2023.03.17"]
[Round "8.4"]
[White "Hetfleischova, Elen"]
[Black "Dobsa, Emma"]
[Result "0-1"]
[ECO "A11"]
[WhiteElo "1623"]
[BlackElo "1449"]
[Annotator "NA RC COMBH"]
[PlyCount "58"]
[EventDate "2023.03.09"]
[EventType "swiss"]
[EventCountry "CZE"]
[SourceTitle "playchess.com"]
[Source "ChessBase"]
[SourceQuality "1"]
[TimeControl "40/5400+30:1800+30"]

1. c4 {[%emt 0:00:06]} c6 {[%emt 0:00:06]} 2. Nc3 {[%emt 0:00:08]} d5 {[%emt 0:00:05]} 3. cxd5 {[%emt 0:00:11]} cxd5 {[%emt 0:00:01]} 4. d4 {[%emt 0:00:14]} Nf6 {[%emt 0:00:41]} 5. g3 {[%emt 0:00:23]} Bf5 {[%emt 0:01:09]} 6. Bg2 {[%emt 0:01:39]} e6 {[%emt 0:02:23]} 7. Nf3 {[%emt 0:14:48]} h6 {[%emt 0:00:23]} 8. Bf4 {[%emt 0:00:58]} Nc6 {[%emt 0:00:16]} 9. O-O {[%emt 0:04:11]} Be7 {[%emt 0:00:55]} 10. e3 {[%emt 0:09:34]} Bh7 {[%emt 0:15:10]} 11. a3 {[%emt 0:06:13]} Nh5 {[%emt 0:07:52]} 12. Rc1 {[%emt 0:13:18]} g5 {[%emt 0:11:11]} 13. Be5 {[%emt 0:00:47]} f6 {[%emt 0:00:16]} 14. g4 {[%emt 0:15:09]} fxe5 {[%emt 0:06:18]} 15. gxh5 {[%emt 0:00:17]} e4 {[%emt 0:00:47]} 16. Nd2 {[%emt 0:06:28]} Bd6 {[%emt 0:07:02]} 17. Kh1 {[%emt 0:05:45]} Rg8 {[%emt 0:05:48]} 18. f3 {[%emt 0:02:10]} g4 {[%emt 0:03:40]} 19. fxe4 {[%emt 0:04:53]} Qh4 {[%emt 0:13:48]} 20. e5 {[%emt 0:00:18]} Nxe5 {[%emt 0:01:30]} 21. Qe1 {[%emt 0:04:32]} g3 {[%emt 0:01:49]} 22. h3 {[%emt 0:00:49]} Nd3 {[%emt 0:01:59]} 23. Qe2 {[%emt 0:01:33]} Nf2+ {[%emt 0:02:58]} 24. Rxf2 {[%emt 0:01:21]} gxf2 {[%emt 0:00:02]} 25. Qb5+ {[%emt 0:00:11]} Kf7 {[%emt 0:03:34]} 26. Qxb7+ {[%emt 0:00:46]} Qe7 {[%emt 0:03:22]} 27. Qb3 {[%emt 0:02:26]} Qg5 {[%emt 0:01:12]} 28. Qb7+ {[%emt 0:00:45]} Be7 {[%emt 0:01:07]} 29. Bxd5 {[%emt 0:04:02]} Qg1+ {[%emt 0:00:08]} 0-1

[Event "CZE-ch U16 Girls 2023"]
[Site "Teplice"]
[Date "2023.03.17"]
[Round "8.5"]
[White "Dudkova, Josefina"]
[Black "Stavova, Marketa"]
[Result "1-0"]
[ECO "D00"]
[WhiteElo "1519"]
[BlackElo "1284"]
[Annotator "NA RC COMBH"]
[PlyCount "89"]
[EventDate "2023.03.09"]
[EventType "swiss"]
[EventCountry "CZE"]
[SourceTitle "playchess.com"]
[Source "ChessBase"]
[SourceQuality "1"]
[TimeControl "40/5400+30:1800+30"]

1. d4 {[%emt 0:00:03]} d5 {[%emt 0:00:17]} 2. Bf4 {[%emt 0:00:06]} c5 {[%emt 0:00:27]} 3. e3 {[%emt 0:00:15]} Nc6 {[%emt 0:00:54]} 4. c3 {[%emt 0:00:34]} Nf6 {[%emt 0:00:56]} 5. Nd2 {[%emt 0:00:25]} Bf5 {[%emt 0:01:15]} 6. Ngf3 {[%emt 0:06:15]} e6 {[%emt 0:01:10]} 7. Be2 {[%emt 0:01:36]} Be7 {[%emt 0:01:44]} 8. O-O {[%emt 0:00:45]} O-O {[%emt 0:00:35]} 9. Ne5 {[%emt 0:04:13]} Qc8 {[%emt 0:04:07]} 10. g4 {[%emt 0:09:20]} Bg6 {[%emt 0:02:03]} 11. h4 {[%emt 0:02:55]} h6 {[%emt 0:00:48]} 12. h5 {[%emt 0:06:43]} Bh7 {[%emt 0:00:38]} 13. Kh2 {[%emt 0:05:36]} Nxe5 {[%emt 0:02:13]} 14. Bxe5 {[%emt 0:01:10]} Nd7 {[%emt 0:02:27]} 15. Bf4 {[%emt 0:04:51]} f6 {[%emt 0:02:08]} 16. Nf3 {[%emt 0:04:39]} c4 {[%emt 0:01:38]} 17. Qd2 {[%emt 0:02:04]} Qc6 {[%emt 0:02:29]} 18. Bd1 {[%emt 0:08:10]} Bd6 {[%emt 0:02:43]} 19. Bc2 {[%emt 0:02:46]} Bxc2 {[%emt 0:01:16]} 20. Qxc2 {[%emt 0:00:02]} Bxf4+ {[%emt 0:00:35]} 21. exf4 {[%emt 0:00:03]} Qd6 {[%emt 0:01:16]} 22. Kg3 {[%emt 0:05:31]} Rf7 {[%emt 0:03:05]} 23. Nh4 {[%emt 0:07:01]} Re8 {[%emt 0:02:13]} 24. Rae1 {[%emt 0:02:02]} b5 {[%emt 0:02:54]} 25. Kf3 {[%emt 0:04:30]} Qb8 {[%emt 0:01:26]} 26. Re2 {[%emt 0:01:56]} e5 {[%emt 0:05:43]} 27. Nf5 {[%emt 0:01:20]} e4+ {[%emt 0:00:55]} 28. Kg3 {[%emt 0:01:04]} Rff8 {[%emt 0:03:30]} 29. Rfe1 {[%emt 0:01:05]} a6 {[%emt 0:01:12]} 30. f3 {[%emt 0:04:34]} exf3 {[%emt 0:00:41]} 31. Nxh6+ {[%emt 0:03:12]} Kh8 {[%emt 0:00:36]} 32. Re7 {[%emt 0:02:52]} Rxe7 {[%emt 0:01:19]} 33. Rxe7 {[%emt 0:00:02]} f2 {[%emt 0:02:53]} 34. Qxf2 {[%emt 0:07:23]} gxh6 {[%emt 0:01:21]} 35. Rxd7 Qc8 {[%emt 0:01:50]} 36. Rxd5 {[%emt 0:01:28]} Qe6 {[%emt 0:01:13]} 37. Rf5 {[%emt 0:00:57]} Rg8 {[%emt 0:00:46]} 38. Kf3 {[%emt 0:00:43]} Re8 {[%emt 0:01:01]} 39. d5 {[%emt 0:00:37]} Qe4+ {[%emt 0:00:39]} 40. Kg3 {[%emt 0:00:01]} Qd3+ {[%emt 0:01:20]} 41. Kh4 {[%emt 0:06:05]} Qd1 {[%emt 0:02:52]} 42. Rxf6 {[%emt 0:11:41]} Qxd5 {[%emt 0:01:48]} 43. Rxh6+ {[%emt 0:00:56]} Kg8 {[%emt 0:00:09]} 44. Rg6+ {[%emt 0:00:33]} Kf8 {[%emt 0:00:08]} 45. Qd4 {[%emt 0:03:00]} 1-0

[Event "CZE-ch U16 Girls 2023"]
[Site "Teplice"]
[Date "2023.03.17"]
[Round "8.6"]
[White "Vavrinkova, Marie"]
[Black "Dominikova, Denisa"]
[Result "0-1"]
[ECO "C77"]
[WhiteElo "1457"]
[BlackElo "1301"]
[Annotator "NA RC COMBH"]
[PlyCount "70"]
[EventDate "2023.03.09"]
[EventType "swiss"]
[EventCountry "CZE"]
[SourceTitle "playchess.com"]
[Source "ChessBase"]
[SourceQuality "1"]
[TimeControl "40/5400+30:1800+30"]

1. e4 {[%emt 0:00:04]} e5 {[%emt 0:00:12]} 2. Nf3 {[%emt 0:00:14]} Nc6 {[%emt 0:00:21]} 3. Bb5 {[%emt 0:00:20]} a6 {[%emt 0:00:27]} 4. Ba4 {[%emt 0:00:39]} Nf6 {[%emt 0:00:27]} 5. d3 {[%emt 0:00:34]} b5 {[%emt 0:03:47]} 6. Bb3 {[%emt 0:00:12]} Be7 {[%emt 0:01:05]} 7. c3 {[%emt 0:00:46]} O-O {[%emt 0:01:10]} 8. O-O {[%emt 0:00:41]} d6 {[%emt 0:03:51]} 9. h3 {[%emt 0:03:31]} Bb7 {[%emt 0:04:02]} 10. Nbd2 {[%emt 0:02:28]} Na5 {[%emt 0:03:36]} 11. Bc2 {[%emt 0:00:54]} c5 {[%emt 0:02:56]} 12. Re1 {[%emt 0:03:09]} Qc7 {[%emt 0:04:03]} 13. Nf1 {[%emt 0:03:27]} Rfe8 {[%emt 0:02:21]} 14. Ng3 {[%emt 0:03:38]} Nc6 {[%emt 0:04:51]} 15. Nf5 {[%emt 0:03:36]} Bf8 {[%emt 0:01:28]} 16. Bg5 {[%emt 0:04:16]} Nd7 {[%emt 0:10:34]} 17. N3h4 {[%emt 0:09:06]} Ne7 {[%emt 0:03:47]} 18. Qg4 {[%emt 0:04:35]} d5 {[%emt 0:07:27]} 19. Bxe7 {[%emt 0:05:02]} Rxe7 {[%emt 0:03:12]} 20. Nxe7+ {[%emt 0:00:53]} Bxe7 {[%emt 0:00:37]} 21. Nf5 {[%emt 0:00:20]} Bf6 {[%emt 0:01:58]} 22. Re3 {[%emt 0:03:53]} Nf8 23. h4 {[%emt 0:02:23]} Ne6 {[%emt 0:06:12]} 24. Rg3 {[%emt 0:04:07]} Kh8 {[%emt 0:07:14]} 25. Rd1 {[%emt 0:10:52]} g6 {[%emt 0:05:13]} 26. Ne3 {[%emt 0:01:35]} d4 {[%emt 0:02:45]} 27. Nd5 {[%emt 0:03:40]} Bxd5 {[%emt 0:01:13]} 28. exd5 {[%emt 0:00:02]} Nf4 {[%emt 0:01:22]} 29. Rf3 {[%emt 0:01:04]} h5 {[%emt 0:02:46]} 30. Rxf4 {[%emt 0:03:39]} hxg4 {[%emt 0:01:10]} 31. Rxf6 {[%emt 0:00:09]} Qe7 {[%emt 0:02:34]} 32. Rc6 {[%emt 0:00:49]} Qxh4 {[%emt 0:01:02]} 33. Rxc5 {[%emt 0:03:13]} Kg7 {[%emt 0:01:21]} 34. g3 {[%emt 0:00:45]} Qh3 {[%emt 0:00:22]} 35. f3 {[%emt 0:04:08]} Rh8 {[%emt 0:01:19]} 0-1

[Event "CZE-ch U16 Girls 2023"]
[Site "Teplice"]
[Date "2023.03.17"]
[Round "8.7"]
[White "Archlebova, Stela"]
[Black "Reznickova, Sibyla"]
[Result "0-1"]
[ECO "C24"]
[WhiteElo "1360"]
[BlackElo "1386"]
[Annotator "NA RC COMBH"]
[PlyCount "32"]
[EventDate "2023.03.09"]
[EventType "swiss"]
[EventCountry "CZE"]
[SourceTitle "playchess.com"]
[Source "ChessBase"]
[SourceQuality "1"]
[TimeControl "40/5400+30:1800+30"]

1. e4 {[%emt 0:00:02]} e5 {[%emt 0:00:17]} 2. Bc4 {[%emt 0:00:09]} Nf6 {[%emt 0:00:18]} 3. d3 {[%emt 0:00:18]} Bc5 {[%emt 0:00:34]} 4. Nc3 {[%emt 0:00:16]} d6 {[%emt 0:00:26]} 5. Bg5 {[%emt 0:00:14]} h6 {[%emt 0:00:53]} 6. Bh4 {[%emt 0:00:33]} Be6 {[%emt 0:01:55]} 7. Bb3 {[%emt 0:00:11]} Nc6 {[%emt 0:00:35]} 8. Nf3 {[%emt 0:01:07]} Nd4 {[%emt 0:02:05]} 9. Nxd4 {[%emt 0:00:18]} Bxd4 {[%emt 0:00:20]} 10. Qf3 {[%emt 0:04:15]} g5 {[%emt 0:02:32]} 11. Bg3 {[%emt 0:00:14]} Bg4 {[%emt 0:00:39]} 12. Qxf6 {[%emt 0:13:08]} Qxf6 {[%emt 0:00:23]} 13. Nd5 {[%emt 0:00:09]} Qd8 {[%emt 0:02:01]} 14. c3 {[%emt 0:00:45]} Bc5 {[%emt 0:02:33]} 15. h3 {[%emt 0:01:12]} Be6 {[%emt 0:02:16]} 16. O-O-O {[%emt 0:00:36]} c6 {[%emt 0:03:37]} 0-1

[Event "CZE-ch U16 Girls 2023"]
[Site "Teplice"]
[Date "2023.03.17"]
[Round "8.8"]
[White "Kavanova, Anezka"]
[Black "Andilova, Klara"]
[Result "1-0"]
[ECO "C11"]
[WhiteElo "1384"]
[BlackElo "1104"]
[Annotator "NA RC COMBH"]
[PlyCount "31"]
[EventDate "2023.03.09"]
[EventType "swiss"]
[EventCountry "CZE"]
[SourceTitle "playchess.com"]
[Source "ChessBase"]
[SourceQuality "1"]
[TimeControl "40/5400+30:1800+30"]

1. e4 {[%emt 0:00:02]} e6 {[%emt 0:00:07]} 2. d4 {[%emt 0:00:03]} d5 {[%emt 0:00:13]} 3. Nc3 {[%emt 0:00:06]} Nf6 {[%emt 0:00:10]} 4. e5 {[%emt 0:00:06]} Nfd7 {[%emt 0:00:05]} 5. f4 {[%emt 0:00:14]} c5 {[%emt 0:00:30]} 6. Nf3 {[%emt 0:03:45]} Nc6 {[%emt 0:00:38]} 7. Be3 {[%emt 0:16:52]} Qb6 {[%emt 0:00:18]} 8. Na4 {[%emt 0:00:19]} Qa5+ {[%emt 0:11:11]} 9. Nc3 {[%emt 0:00:15]} Qb6 {[%emt 0:01:17]} 10. Na4 {[%emt 0:02:54]} Qa5+ {[%emt 0:00:45]} 11. c3 {[%emt 0:00:27]} cxd4 {[%emt 0:02:20]} 12. Nxd4 {[%emt 0:02:18]} Nb6 {[%emt 0:16:33]} 13. Nxb6 {[%emt 0:04:16]} Qxb6 {[%emt 0:00:52]} 14. Qd2 {[%emt 0:05:05]} Be7 {[%emt 0:08:51]} 15. Nxe6 {[%emt 0:05:31]} d4 {[%emt 0:05:18]} 16. Nxd4 {[%emt 0:00:41]} 1-0

[Event "CZE-ch U16 Girls 2023"]
[Site "Teplice"]
[Date "2023.03.17"]
[Round "8.9"]
[White "Souralova, Jana"]
[Black "Hrbkova, Johana"]
[Result "0-1"]
[ECO "C42"]
[WhiteElo "1187"]
[BlackElo "1254"]
[Annotator "NA RC COMBH"]
[PlyCount "52"]
[EventDate "2023.03.09"]
[EventType "swiss"]
[EventCountry "CZE"]
[SourceTitle "playchess.com"]
[Source "ChessBase"]
[SourceQuality "1"]
[TimeControl "40/5400+30:1800+30"]

1. e4 {[%emt 0:00:02]} e5 {[%emt 0:00:05]} 2. Nf3 {[%emt 0:00:06]} Nf6 {[%emt 0:00:11]} 3. Nc3 {[%emt 0:00:07]} Bb4 {[%emt 0:00:07]} 4. Bc4 {[%emt 0:02:50]} O-O {[%emt 0:03:21]} 5. d3 {[%emt 0:01:23]} d5 {[%emt 0:02:42]} 6. exd5 {[%emt 0:02:47]} Nxd5 {[%emt 0:00:22]} 7. Bxd5 {[%emt 0:00:43]} Qxd5 {[%emt 0:00:20]} 8. O-O {[%emt 0:00:49]} Bxc3 {[%emt 0:01:30]} 9. bxc3 {[%emt 0:00:09]} Bg4 {[%emt 0:01:20]} 10. Re1 {[%emt 0:03:57]} Nc6 {[%emt 0:02:21]} 11. c4 {[%emt 0:02:29]} Qd6 {[%emt 0:03:17]} 12. h3 {[%emt 0:03:41]} Bh5 {[%emt 0:00:44]} 13. Bb2 {[%emt 0:08:25]} Rfe8 {[%emt 0:01:14]} 14. g4 {[%emt 0:13:01]} Bg6 {[%emt 0:01:09]} 15. Ng5 {[%emt 0:07:24]} f5 {[%emt 0:07:59]} 16. gxf5 {[%emt 0:11:21]} Bxf5 {[%emt 0:00:17]} 17. Qf3 {[%emt 0:00:25]} Qg6 {[%emt 0:03:34]} 18. Qg3 {[%emt 0:02:44]} Nd4 {[%emt 0:03:56]} 19. Bxd4 {[%emt 0:01:01]} exd4 {[%emt 0:00:12]} 20. Nf3 Qb6 {[%emt 0:11:16]} 21. Reb1 {[%emt 0:13:13]} Qh6 {[%emt 0:03:48]} 22. Kg2 {[%emt 0:05:14]} Re6 {[%emt 0:04:30]} 23. Qh4 Qg6+ {[%emt 0:01:10]} 24. Qg3 {[%emt 0:06:46]} Qh5 25. Ne5 Rxe5 {[%emt 0:04:35]} 26. Qxe5 {[%emt 0:06:42]} Bxh3+ {[%emt 0:00:16]} 0-1

[Event "CZE-ch U16 Girls 2023"]
[Site "Teplice"]
[Date "2023.03.17"]
[Round "8.10"]
[White "Mullerova, Karina Nela"]
[Black "Barteckova, Denisa"]
[Result "1/2-1/2"]
[ECO "A00"]
[WhiteElo "1283"]
[BlackElo "1417"]
[Annotator "NA RC COMBH"]
[PlyCount "48"]
[EventDate "2023.03.09"]
[EventType "swiss"]
[EventCountry "CZE"]
[SourceTitle "playchess.com"]
[Source "ChessBase"]
[SourceQuality "1"]
[TimeControl "40/5400+30:1800+30"]

1. b4 {[%emt 0:00:07]} a5 {[%emt 0:00:05]} 2. b5 {[%emt 0:00:09]} d5 {[%emt 0:00:05]} 3. Bb2 {[%emt 0:00:29]} Nf6 {[%emt 0:00:43]} 4. e3 {[%emt 0:00:57]} c5 {[%emt 0:03:23]} 5. bxc6 {[%emt 0:00:13]} bxc6 {[%emt 0:00:26]} 6. d3 {[%emt 0:06:24]} Nbd7 {[%emt 0:02:14]} 7. Nf3 {[%emt 0:01:28]} Qc7 {[%emt 0:00:38]} 8. Nbd2 {[%emt 0:02:28]} e5 {[%emt 0:00:40]} 9. a3 {[%emt 0:02:59]} Bd6 {[%emt 0:00:45]} 10. c4 {[%emt 0:01:43]} Ba6 {[%emt 0:00:55]} 11. Qc2 {[%emt 0:00:38]} O-O {[%emt 0:01:56]} 12. Be2 {[%emt 0:01:34]} Rfb8 {[%emt 0:00:46]} 13. O-O {[%emt 0:02:34]} Rb7 {[%emt 0:11:21]} 14. Bc3 {[%emt 0:09:08]} Rba7 {[%emt 0:07:12]} 15. g3 {[%emt 0:21:10]} g6 {[%emt 0:03:06]} 16. h3 Re8 {[%emt 0:02:44]} 17. Kg2 {[%emt 0:09:24]} h6 {[%emt 0:01:44]} 18. Rfd1 {[%emt 0:06:11]} Kg7 {[%emt 0:18:37]} 19. Re1 {[%emt 0:06:46]} Kg8 {[%emt 0:02:35]} 20. Red1 {[%emt 0:01:26]} Kg7 {[%emt 0:02:07]} 21. Re1 {[%emt 0:00:13]} Kg8 {[%emt 0:01:22]} 22. Red1 {[%emt 0:00:21]} Kg7 23. Ne1 d4 24. exd4 exd4 1/2-1/2